bitfinex/quotes_SOLUSD_20250527
["timestamp","ask_amount","ask_price","bid_price","bid_amount"]
[1748346067975,12.29366343,176.38,176.34,9.36]
[1748346068146,12.29366343,176.37,176.34,44.78]
[1748346068477,14.27790289,176.39,176.34,57.07366343]
[1748346070447,1.98423946,176.39,176.34,57.07366343]
[1748346070642,1.98423946,176.39,176.36,12.29366343]
[1748346071871,1.98423946,176.39,176.37,12.29366343]
[1748346072077,1.98423946,176.39,176.34,44.78]
[1748346072248,12.29366343,176.38,176.34,44.78]
[1748346072645,12.29366343,176.38,176.34,57.07366343]
[1748346073147,12.29366343,176.35,176.34,9.36]
[1748346073346,12.86071758,176.35,176.34,9.36]
[1748346073566,17.11362372,176.35,176.29,9.36]
[1748346073766,12.29366343,176.32,176.29,9.36]
[1748346073977,12.29366343,176.32,176.29,44.82]
[1748346074279,12.29366343,176.32,176.3,35.46]
[1748346075451,0.5671828,176.31,176.3,35.46]
[1748346076683,0.5671828,176.31,176.3,47.75366343]
[1748346076982,0.5671828,176.31,176.3,66.54547386]
[1748346077172,0.5671828,176.31,176.3,47.895825]
[1748346077371,2.83488335,176.38,176.3,47.895825]
[1748346077579,12.29366343,176.35,176.3,47.895825]
[1748346077967,12.29366343,176.35,176.3,35.60216157]
[1748346078189,12.29366343,176.34,176.3,35.60216157]
[1748346078489,12.29366343,176.35,176.3,47.895825]
[1748346078866,2.83488335,176.38,176.3,47.895825]
[1748346079058,12.29366343,176.32,176.29,9.36]
[1748346079258,1.5051,176.35,176.29,9.36]
[1748346079459,0.56715063,176.32,176.29,44.88]
[1748346080268,0.56715063,176.32,176.29,57.17366343]
[1748346080586,1.41786997,176.33,176.29,57.17366343]
[1748346080960,0.56708631,176.34,176.32,12.29366343]
[1748346081164,0.56708631,176.34,176.33,12.29366343]
[1748346081998,0.56708631,176.34,176.33,12.435825]
[1748346082360,0.56708631,176.34,176.33,31.08547386]
[1748346082764,1.4173628,176.39,176.34,0.14216157]
[1748346082765,0.5669577,176.38,176.34,0.14216157]
[1748346083087,0.5669577,176.38,176.37,12.29366343]
[1748346083895,0.5669577,176.38,176.35,44.9]
[1748346084078,0.5669577,176.38,176.35,57.19366343]
[1748346084772,1.98428836,176.39,176.35,57.19366343]
[1748346085963,1.98428836,176.39,176.35,44.9]
[1748346086166,1.98428836,176.39,176.36,12.29366343]
[1748346086580,1.98428836,176.39,176.37,12.29366343]
[1748346086783,2.83422309,176.42,176.37,12.29366343]
[1748346086784,15.12788652,176.42,176.37,12.29366343]
[1748346087696,2.83422309,176.42,176.37,12.29366343]
[1748346087871,15.12788652,176.42,176.37,12.29366343]
[1748346088403,2.83422309,176.42,176.37,12.29366343]
[1748346088699,2.83422309,176.42,176.35,44.9]
[1748346088700,1.98412698,176.4,176.35,44.9]
[1748346088869,1.98412698,176.4,176.36,12.29366343]
[1748346090388,1.98378959,176.43,176.37,12.29366343]
[1748346090573,14.27745302,176.43,176.38,12.29366343]
[1748346091300,1.98378959,176.43,176.39,12.29366343]
[1748346091485,1.98378959,176.43,176.4,35.6]
[1748346091688,14.27745302,176.43,176.4,35.6]
[1748346092492,1.98378959,176.43,176.4,47.89366343]
[1748346092697,1.98378959,176.43,176.41,12.29366343]
[1748346093115,1.98378959,176.43,176.4,47.89366343]
[1748346093278,1.98378959,176.43,176.41,0.14216157]
[1748346093481,0.56679702,176.43,176.42,12.29366343]
[1748346094385,1.41680679,176.46,176.42,12.29366343]
[1748346095910,1.98333993,176.47,176.43,0.14216157]
[1748346096212,14.27700336,176.47,176.44,35.74]
[1748346097200,1.98333993,176.47,176.44,35.74]
[1748346097385,14.27700336,176.47,176.44,35.74]
[1748346097589,12.29366343,176.45,176.44,35.76]
[1748346097818,0.56673278,176.45,176.44,35.76]
[1748346098606,0.56673278,176.45,176.44,35.90216157]
[1748346098916,0.56673278,176.45,176.44,48.195825]
[1748346099714,1.41649023,176.5,176.44,66.84547386]
[1748346099895,1.41649023,176.5,176.47,12.29366343]
[1748346100206,1.41649023,176.5,176.45,0.14216157]
[1748346100507,1.41649023,176.5,176.46,0.14216157]
[1748346100691,1.41649023,176.5,176.47,12.29366343]
[1748346100887,1.41649023,176.5,176.48,9.56]
[1748346101089,1.41649023,176.5,176.49,35.82]
[1748346103085,14.27672589,176.5,176.49,35.82]
[1748346103291,14.27672589,176.5,176.48,9.56]
[1748346103486,12.29366343,176.49,176.48,9.56]
[1748346103692,1.98306246,176.5,176.46,35.82]
[1748346103907,12.29366343,176.47,176.46,35.82]
[1748346104291,1.98306246,176.5,176.46,35.82]
[1748346104501,12.29366343,176.49,176.46,35.82]
[1748346105102,0.56663644,176.48,176.46,35.82]
[1748346105515,1.98322755,176.48,176.46,35.84]
[1748346106610,0.56663644,176.48,176.47,12.29366343]
[1748346107228,12.29366343,176.48,176.46,35.84]
[1748346108330,0.56660434,176.49,176.46,35.84]
[1748346108523,12.86026777,176.49,176.46,35.84]
[1748346109007,12.29366343,176.48,176.46,35.84]
[1748346109210,1.98333993,176.47,176.43,21.85366343]
[1748346109449,14.27700336,176.47,176.44,35.88]
[1748346110224,12.29366343,176.46,176.44,35.88]
[1748346110407,1.98333993,176.47,176.43,9.56]
[1748346110408,12.29366343,176.45,176.43,9.56]
[1748346110740,12.29366343,176.45,176.44,35.88]
[1748346110905,12.29366343,176.45,176.43,9.56]
[1748346111101,0.5667649,176.44,176.43,45.44]
[1748346111807,0.5667649,176.44,176.43,57.73366343]
[1748346112004,0.5667649,176.44,176.43,45.44]
[1748346112917,2.83318434,176.48,176.43,57.73366343]
[1748346113106,12.29366343,176.5,176.45,12.29366343]
[1748346113306,12.29366343,176.5,176.46,12.29366343]
[1748346113514,12.29366343,176.5,176.45,12.29366343]
[1748346113845,12.29366343,176.49,176.44,12.435825]
[1748346115334,1.98322755,176.48,176.44,12.435825]
[1748346120035,1.98322755,176.48,176.45,12.29366343]
[1748346120342,0.56663644,176.48,176.46,12.29366343]
[1748346121052,0.56663644,176.48,176.47,12.29366343]
[1748346121410,0.56654013,176.51,176.47,12.435825]
[1748346121614,0.56654013,176.51,176.48,48.11366343]
[1748346121807,0.56654013,176.51,176.48,35.82]
[1748346122026,1.98289047,176.51,176.48,35.82]
[1748346122538,0.56641178,176.55,176.53,26.0]
[1748346122718,0.56641178,176.55,176.54,48.515825]
[1748346123031,0.56641178,176.55,176.54,36.22216157]
[1748346123233,0.56641178,176.55,176.54,48.37366343]
[1748346123532,12.29366343,176.59,176.54,48.37366343]
[1748346123735,4.81286449,176.61,176.55,9.86]
[1748346124041,12.29366343,176.56,176.53,36.2]
[1748346124228,12.29366343,176.55,176.53,36.2]
[1748346124413,149.1,176.6,176.53,36.2]
[1748346124800,12.29366343,176.56,176.53,36.2]
[1748346125039,12.29366343,176.55,176.53,36.2]
[1748346125560,0.56644386,176.54,176.53,36.2]
[1748346126810,0.56644386,176.54,176.52,9.86]
[1748346127007,12.29366343,176.53,176.52,9.86]
[1748346127320,0.56644386,176.54,176.52,9.86]
[1748346127511,12.86010729,176.54,176.52,9.86]
[1748346129342,0.56644386,176.54,176.52,9.86]
[1748346130320,0.56644386,176.54,176.52,22.15366343]
[1748346131434,0.56644386,176.54,176.52,9.86]
[1748346132142,12.86010729,176.54,176.52,9.86]
[1748346132316,12.29366343,176.53,176.52,9.86]
[1748346132921,0.56644386,176.54,176.52,9.86]
[1748346133123,12.29366343,176.53,176.52,9.86]
[1748346133620,0.56650804,176.52,176.49,36.34]
[1748346133814,12.29366343,176.51,176.49,36.34]
[1748346134238,14.27644158,176.52,176.47,22.15366343]
[1748346134418,12.29366343,176.51,176.49,36.38]
[1748346135321,0.56657223,176.5,176.49,36.38]
[1748346136242,0.56644386,176.54,176.52,26.0]
[1748346136444,0.56644386,176.54,176.53,84.49366343]
[1748346137324,1.98210442,176.58,176.53,84.49366343]
[1748346137548,14.27576785,176.58,176.53,84.49366343]
[1748346137749,1.98210442,176.58,176.54,12.29366343]
[1748346138113,0.56631555,176.58,176.54,12.29366343]
[1748346138655,0.56631555,176.58,176.54,12.435825]
[1748346140251,0.56631555,176.58,176.55,12.29366343]
[1748346141452,1.98202911,176.59,176.55,12.29366343]
[1748346142379,1.98202911,176.59,176.56,12.29366343]
[1748346142674,1.98202911,176.59,176.57,36.26]
[1748346142969,14.27569254,176.59,176.57,36.26]
[1748346143769,1.98202911,176.59,176.57,36.26]
[1748346143963,14.27569254,176.59,176.57,36.26]
[1748346145279,1.98202911,176.59,176.57,36.26]
[1748346148285,1.41574563,176.59,176.57,36.26]
[1748346148487,1.41574563,176.59,176.57,48.55366343]
[1748346150382,1.41574563,176.59,176.58,12.29366343]
[1748346151798,1.41574563,176.59,176.57,48.55366343]
[1748346151997,1.41574563,176.59,176.57,36.26]
[1748346152215,14.27569254,176.59,176.57,36.18]
[1748346153119,12.29366343,176.58,176.53,9.86]
[1748346153325,4.81344651,176.59,176.56,36.2]
[1748346153494,12.29366343,176.57,176.56,36.2]
[1748346154229,12.29366343,176.57,176.53,9.86]
[1748346154230,12.29366343,176.57,176.54,36.2]
[1748346154520,0.5663797,176.56,176.54,36.2]
[1748346155313,0.5663797,176.56,176.55,36.24]
[1748346155690,0.5663797,176.56,176.53,9.86]
[1748346156113,0.5663797,176.56,176.54,36.24]
[1748346156417,0.5663797,176.56,176.54,48.53366343]
[1748346157007,0.5663797,176.56,176.54,36.24]
[1748346158242,12.83213831,176.55,176.54,36.24]
[1748346158524,12.83213831,176.55,176.53,46.08]
[1748346159597,0.56641178,176.55,176.53,46.08]
[1748346160295,0.5663797,176.56,176.53,46.08]
[1748346162237,12.83210623,176.56,176.53,46.08]
[1748346162624,0.5663797,176.56,176.54,0.14216157]
[1748346164455,1.9822911,176.57,176.54,0.14216157]
[1748346168761,12.26572653,176.56,176.54,0.14216157]
[1748346168971,12.26572653,176.56,176.55,36.14]
[1748346169550,12.26572653,176.56,176.53,9.86]
[1748346169756,1.9822911,176.57,176.53,9.86]
[1748346169757,12.26572653,176.54,176.53,9.86]
[1748346170867,12.83217039,176.54,176.53,9.86]
[1748346171765,17.08049937,176.54,176.48,9.9]
[1748346171937,12.26572653,176.51,176.5,36.24]
[1748346172136,12.26572653,176.51,176.48,9.9]
[1748346172441,30.81477284,176.54,176.48,46.14]
[1748346172442,12.26572653,176.49,176.48,46.14]
[1748346172747,12.83233087,176.49,176.48,46.14]
[1748346174241,0.56660434,176.49,176.48,46.14]
[1748346174666,0.56660434,176.49,176.48,46.12]
[1748346174856,0.56660434,176.49,176.48,9.9]
[1748346175057,0.56660434,176.49,176.48,46.12]
[1748346175467,12.83233087,176.49,176.48,46.12]
[1748346176054,0.56660434,176.49,176.48,46.12]
[1748346176771,0.56660434,176.49,176.48,46.26216157]
[1748346177171,1.98284718,176.52,176.48,46.26216157]
[1748346177666,1.98284718,176.52,176.49,0.14216157]
[1748346178242,26.0,176.51,176.49,0.14216157]
[1748346178659,27.98284718,176.52,176.49,18.79181043]
[1748346178847,0.56650804,176.52,176.49,18.79181043]
[1748346179039,26.0,176.53,176.49,18.79181043]
[1748346179442,1.98248839,176.55,176.49,18.79181043]
[1748346179648,26.0,176.53,176.49,18.79181043]
[1748346180557,1.98248839,176.55,176.49,18.79181043]
[1748346181579,26.0,176.54,176.49,18.79181043]
[1748346182483,1.98248839,176.55,176.49,18.79181043]
[1748346182683,12.26572653,176.54,176.49,18.79181043]
[1748346182981,12.26572653,176.53,176.5,36.16]
[1748346183157,12.26572653,176.53,176.49,0.14216157]
[1748346183356,0.56650804,176.52,176.51,36.16]
[1748346185263,0.56650804,176.52,176.51,36.30216157]
[1748346185471,1.41607661,176.55,176.51,36.30216157]
[1748346185472,1.98248839,176.55,176.51,36.30216157]
[1748346186266,14.24821492,176.55,176.51,36.30216157]
[1748346189067,14.24821492,176.55,176.48,9.9]
[1748346189068,38.26572653,176.52,176.48,9.9]
[1748346189379,26.0,176.49,176.48,9.9]
[1748346189556,26.0,176.49,176.48,46.02]
[1748346189753,26.0,176.49,176.48,9.9]
[1748346189959,26.0,176.49,176.48,46.02]
[1748346190185,26.0,176.49,176.48,9.9]
[1748346190186,26.56660434,176.49,176.48,9.9]
[1748346190355,26.56660434,176.49,176.48,46.02]
[1748346190557,0.56660434,176.49,176.48,46.02]
[1748346193661,12.83233087,176.49,176.48,9.9]
[1748346193984,38.83233087,176.49,176.48,9.9]
[1748346196075,12.83233087,176.49,176.48,9.9]
[1748346197761,26.0,176.46,176.43,9.86]
[1748346197970,12.26572653,176.46,176.44,36.12]
[1748346198482,26.0,176.47,176.43,9.86]
[1748346198792,12.26572653,176.46,176.44,36.16]
[1748346199490,26.0,176.47,176.44,36.16]
[1748346199698,26.0,176.45,176.44,36.30216157]
[1748346199895,0.56673278,176.45,176.44,36.30216157]
[1748346203080,0.56673278,176.45,176.44,54.95181043]
[1748346204295,0.56670066,176.46,176.44,54.95181043]
[1748346206800,0.56670066,176.46,176.44,36.16]
[1748346207198,0.56670066,176.46,176.45,0.14216157]
[1748346207879,0.56670066,176.46,176.43,9.86]
[1748346208080,12.26572653,176.45,176.43,9.86]
[1748346208379,12.83249143,176.44,176.43,45.96]
[1748346208976,12.83249143,176.44,176.43,9.86]
[1748346209184,12.83249143,176.44,176.43,45.96]
[1748346209495,0.5667649,176.44,176.43,45.96]
[1748346209806,26.5667649,176.44,176.43,45.96]
[1748346212218,26.5667649,176.44,176.43,9.86]
[1748346212382,26.5667649,176.44,176.43,45.94]
[1748346213421,12.83249143,176.44,176.43,45.94]
[1748346213928,12.83249143,176.44,176.43,9.86]
[1748346219121,0.5667649,176.44,176.43,9.86]
[1748346219422,12.83249143,176.44,176.43,9.86]
[1748346220429,0.5667649,176.44,176.43,9.86]
[1748346221326,26.5667649,176.44,176.43,9.86]
[1748346228599,38.83249143,176.44,176.43,9.86]
[1748346228906,26.5667649,176.44,176.43,9.86]
[1748346231126,38.83249143,176.44,176.43,9.86]
[1748346233213,38.83249143,176.44,176.42,35.84]
[1748346233423,12.83249143,176.44,176.42,35.84]
[1748346233601,14.24940369,176.44,176.39,9.92216157]
[1748346233802,14.24940369,176.44,176.42,35.86]
[1748346234941,14.24940369,176.44,176.39,9.78]
[1748346234942,26.0,176.4,176.39,9.78]
[1748346235232,12.26572653,176.41,176.39,9.78]
[1748346235402,12.26572653,176.41,176.39,45.62]
[1748346235403,0.56689342,176.4,176.39,45.62]
[1748346236231,26.56689342,176.4,176.39,45.62]
[1748346237002,26.56689342,176.4,176.39,45.76216157]
[1748346237402,0.56689342,176.4,176.39,9.92216157]
[1748346237643,0.56689342,176.4,176.39,45.74216157]
[1748346238438,0.56682915,176.42,176.39,45.74216157]
[1748346240533,0.56670066,176.46,176.4,18.79181043]
[1748346240742,26.0,176.44,176.4,18.79181043]
[1748346241115,12.26572653,176.45,176.4,18.79181043]
[1748346241331,26.0,176.42,176.4,18.79181043]
[1748346241806,26.0,176.42,176.4,0.14216157]
[1748346242006,26.0,176.41,176.4,0.14216157]
[1748346242940,0.56686128,176.41,176.4,0.14216157]
[1748346243119,26.0,176.41,176.4,0.14216157]
[1748346244635,26.0,176.41,176.39,45.6]
[1748346244833,1.98356474,176.45,176.39,45.6]
[1748346245142,26.56687734,176.41,176.39,45.6]
[1748346245833,0.56687734,176.41,176.39,9.78]
[1748346246136,26.0,176.42,176.4,35.90216157]
[1748346246343,26.56676862,176.44,176.41,18.79181043]
[1748346247534,0.56676862,176.44,176.41,18.79181043]
[1748346247705,26.56676862,176.44,176.41,18.79181043]
[1748346247906,26.0,176.43,176.41,18.79181043]
[1748346249138,0.56663644,176.48,176.41,24.46035792]
[1748346249306,1.41633189,176.52,176.41,24.46035792]
[1748346249512,14.24856646,176.52,176.41,34.6548017]
[1748346249712,26.0,176.49,176.41,34.6548017]
[1748346249930,26.0,176.49,176.43,18.79181043]
[1748346250133,1.98283993,176.52,176.46,0.14216157]
[1748346250438,26.0,176.49,176.47,9.62]
[1748346250641,26.56662469,176.49,176.48,35.76]
[1748346257756,26.0,176.49,176.48,35.76]
[1748346258067,26.56647595,176.53,176.48,35.90216157]
[1748346258294,0.56647595,176.53,176.49,0.14216157]
[1748346258431,0.56647595,176.53,176.49,18.79181043]
[1748346258625,26.56647595,176.53,176.49,18.79181043]
[1748346258826,26.0,176.53,176.49,18.79181043]
[1748346259035,0.56634762,176.57,176.49,18.79181043]
[1748346259352,0.56634762,176.57,176.49,23.2302551]
[1748346259553,26.0,176.56,176.49,23.2302551]
[1748346259728,0.56641178,176.55,176.49,18.79181043]
[1748346260323,26.56641178,176.55,176.49,18.79181043]
[1748346261827,26.0,176.53,176.49,18.79181043]
[1748346262627,26.0,176.54,176.49,18.79181043]
[1748346263228,26.56641178,176.55,176.49,24.45781465]
[1748346263428,26.0,176.55,176.49,24.45781465]
[1748346263851,26.0,176.57,176.49,24.45781465]
[1748346264560,26.56631891,176.58,176.49,24.45781465]
[1748346268343,26.56631891,176.58,176.49,113.25781465]
[1748346269039,26.56636363,176.57,176.49,113.25781465]
[1748346270042,26.0,176.57,176.49,113.25781465]
[1748346272137,2.16479168,176.59,176.49,127.42292315]
[1748346272357,26.56629168,176.59,176.51,18.79181043]
[1748346272558,4.16,176.65,176.53,24.89351043]
[1748346272863,4.16,176.65,176.56,0.14216157]
[1748346273163,26.0,176.64,176.56,0.14216157]
[1748346273748,0.56612318,176.64,176.58,18.79181043]
[1748346273946,26.56612318,176.64,176.6,0.14216157]
[1748346274280,26.56612318,176.64,176.62,0.14216157]
[1748346274984,4.16,176.65,176.62,18.79181043]
[1748346275159,26.0,176.64,176.62,18.79181043]
[1748346275479,4.16,176.65,176.62,18.79181043]
[1748346275780,26.0,176.64,176.62,24.45367566]
[1748346275947,26.0,176.64,176.62,18.79181043]
[1748346276345,26.0,176.64,176.62,24.45363656]
[1748346277560,4.16,176.65,176.62,24.45363656]
[1748346278264,4.16,176.65,176.62,18.79181043]
[1748346279783,4.16,176.9,176.76,17.01]
[1748346279995,4.16,176.9,176.75,10.0]
[1748346279996,4.16,176.9,176.8,18.64964886]
[1748346280196,4.16,176.9,176.82,35.80181043]
[1748346280393,4.16,176.9,176.84,35.80181043]
[1748346280549,4.16,176.94,176.86,18.79181043]
[1748346280749,4.16,176.94,176.88,18.79181043]
[1748346280986,4.16,176.94,176.92,18.79181043]
[1748346281285,2.59871416,176.94,176.93,35.72216157]
[1748346282371,2.59871416,176.94,176.93,54.37181043]
[1748346284464,2.59871416,176.94,176.93,18.79181043]
[1748346284677,2.59871416,176.94,176.93,63.81181043]
[1748346285065,3.16387749,176.94,176.93,28.27181043]
[1748346285265,3.16387749,176.94,176.93,63.81181043]
[1748346287667,29.16387749,176.94,176.93,9.46]
[1748346288311,22.697534,176.94,176.93,9.46]
[1748346288488,22.697534,176.94,176.93,44.96]
[1748346289886,3.16387749,176.94,176.93,44.96]
[1748346290766,22.697534,176.94,176.93,44.94]
[1748346291669,3.16387749,176.94,176.93,44.94]
[1748346292505,22.697534,176.94,176.91,81.42]
[1748346292687,19.53365651,176.93,176.92,35.44]
[1748346293005,3.16387749,176.94,176.92,35.44]
[1748346294405,19.53365651,176.93,176.91,90.88]
[1748346294580,19.53365651,176.92,176.91,90.88]
[1748346294778,19.53365651,176.92,176.91,126.32]
[1748346295779,19.53365651,176.92,176.91,126.3]
[1748346296593,20.09888373,176.92,176.91,44.88]
[1748346296792,20.09888373,176.92,176.91,44.86]
[1748346298199,0.56519527,176.93,176.91,44.86]
[1748346298780,0.56519527,176.93,176.92,0.14216157]
[1748346302228,0.56519527,176.93,176.92,18.79181043]
[1748346308219,0.56519527,176.93,176.92,0.14216157]
[1748346308417,26.56519527,176.93,176.92,44.96216157]
[1748346308589,38.77479893,176.93,176.92,9.44]
[1748346308784,38.77479893,176.93,176.92,44.82]
[1748346309016,38.77479893,176.93,176.92,9.44]
[1748346309216,38.77479893,176.93,176.92,44.82]
[1748346310293,0.56519527,176.93,176.92,44.82]
[1748346310806,12.77479893,176.93,176.92,44.82]
[1748346313393,0.56519527,176.93,176.92,44.82]
[1748346313591,12.77479893,176.93,176.92,44.82]
[1748346314404,12.77479893,176.93,176.92,9.44]
[1748346314714,12.77479893,176.93,176.92,44.82]
[1748346315623,0.56519527,176.93,176.92,44.82]
[1748346317535,12.77479893,176.93,176.92,44.82]
[1748346317737,14.37959893,176.93,176.92,44.82]
[1748346317939,14.37959893,176.93,176.92,9.44]
[1748346319430,2.16999527,176.93,176.92,9.44]
[1748346319638,12.77479893,176.93,176.92,9.44]
[1748346320201,0.56519527,176.93,176.92,9.44]
[1748346320431,12.77479893,176.93,176.92,9.44]
[1748346320635,0.56519527,176.93,176.92,9.44]
[1748346322702,14.18778711,176.93,176.87,0.14216157]
[1748346322908,14.18778711,176.93,176.89,18.79181043]
[1748346323105,14.18778711,176.93,176.91,0.14216157]
[1748346325235,17.01376348,176.93,176.9,35.32]
[1748346325810,26.0,176.91,176.88,9.44]
[1748346326130,38.20960366,176.91,176.89,35.3]
[1748346326932,38.20960366,176.91,176.88,9.44]
[1748346327133,38.20960366,176.91,176.9,35.28]
[1748346327525,38.77486283,176.91,176.9,35.28]
[1748346327721,26.56525917,176.91,176.9,35.28]
[1748346328028,26.56525917,176.91,176.89,0.14216157]
[1748346328029,26.0,176.9,176.89,0.14216157]
[1748346328209,26.0,176.9,176.89,35.40216157]
[1748346328609,26.56525917,176.91,176.89,35.40216157]
[1748346329523,26.0,176.9,176.89,35.40216157]
[1748346329924,26.56529112,176.9,176.89,35.40216157]
[1748346332917,0.56529112,176.9,176.89,35.40216157]
[1748346333216,0.56529112,176.9,176.89,35.26]
[1748346333423,0.56529112,176.9,176.89,35.22]
[1748346333616,0.56529112,176.9,176.88,9.44]
[1748346333817,0.56529112,176.9,176.89,35.2]
[1748346335237,26.0,176.89,176.88,9.44]
[1748346335429,38.20960366,176.89,176.84,18.64964886]
[1748346335635,38.20960366,176.85,176.84,9.44]
[1748346335828,38.20960366,176.85,176.84,44.64]
[1748346336347,38.20960366,176.85,176.84,44.62]
[1748346337045,38.7750546,176.85,176.84,44.64]
[1748346337452,0.56545094,176.85,176.84,44.78216157]
[1748346338336,26.56545094,176.85,176.84,44.78216157]
[1748346339645,0.56541897,176.86,176.84,44.78216157]
[1748346341149,12.77502263,176.86,176.84,9.44]
[1748346341356,12.20960366,176.85,176.84,9.44]
[1748346341849,12.20960366,176.85,176.84,44.6]
[1748346342953,12.7750546,176.85,176.84,44.6]
[1748346343156,19.84319142,176.85,176.74,4.01128594]
[1748346343457,12.20960366,176.81,176.79,9.3]
[1748346343659,12.20960366,176.81,176.8,35.18]
[1748346344029,12.20960366,176.81,176.79,9.3]
[1748346344228,26.0,176.81,176.8,35.32216157]
[1748346345059,26.56557886,176.81,176.8,35.32216157]
[1748346345451,0.56557886,176.81,176.8,35.32216157]
[1748346345827,12.77518252,176.81,176.8,35.18]
[1748346346352,12.77518252,176.81,176.8,35.16]
[1748346347024,0.56557886,176.81,176.8,35.16]
[1748346347432,26.56557886,176.81,176.8,35.30216157]
[1748346347966,38.77518252,176.81,176.8,35.16]
[1748346348263,38.77518252,176.81,176.8,35.14]
[1748346349363,0.56557886,176.81,176.8,35.14]
[1748346349744,12.77518252,176.81,176.8,35.14]
[1748346350968,0.56548292,176.84,176.81,18.64964886]
[1748346351249,0.56545094,176.85,176.81,18.64964886]
[1748346351463,0.56545094,176.85,176.82,0.14216157]
[1748346351635,0.56545094,176.85,176.84,0.14216157]
[1748346352340,0.56535504,176.88,176.84,0.14216157]
[1748346352661,0.56535504,176.88,176.86,0.14216157]
[1748346352965,26.56535504,176.88,176.87,35.30216157]
[1748346353875,0.56529112,176.9,176.87,35.30216157]
[1748346354171,0.56529112,176.9,176.88,0.14216157]
[1748346354337,26.0,176.89,176.88,0.14216157]
[1748346355037,0.56529112,176.9,176.88,0.14216157]
[1748346355959,26.0,176.88,176.87,35.30216157]
[1748346356834,12.77489478,176.9,176.88,0.14216157]
[1748346356835,0.56529112,176.9,176.88,0.14216157]
[1748346357159,26.56529112,176.9,176.88,0.14216157]
[1748346358142,26.56529112,176.9,176.88,18.79181043]
[1748346358458,26.0,176.9,176.88,18.79181043]
[1748346360352,16.33401782,176.94,176.88,18.79181043]
[1748346360658,26.0,176.91,176.88,18.79181043]
[1748346361046,0.56519527,176.93,176.88,18.79181043]
[1748346361245,26.0,176.9,176.88,18.79181043]
[1748346361553,26.0,176.9,176.89,35.34]
[1748346362139,12.20960366,176.91,176.89,35.34]
[1748346362339,26.0,176.88,176.87,0.14216157]
[1748346362568,26.0,176.88,176.87,35.34]
[1748346363064,26.0,176.88,176.87,35.48216157]
[1748346363832,26.0,176.88,176.87,35.46216157]
[1748346364567,26.0,176.88,176.85,9.3]
[1748346364568,26.0,176.86,176.85,9.44216157]
[1748346364777,26.0,176.86,176.85,44.76216157]
[1748346365141,12.7749587,176.88,176.85,44.76216157]
[1748346365451,0.56534361,176.89,176.86,18.79181043]
[1748346365760,26.56534361,176.89,176.86,18.79181043]
[1748346366263,26.0,176.88,176.86,18.79181043]
[1748346366435,26.56536264,176.88,176.86,18.79181043]
[1748346368284,26.0,176.88,176.86,18.79181043]
[1748346369164,26.56534786,176.89,176.86,18.79181043]
[1748346369792,0.56534786,176.89,176.86,18.79181043]
[1748346370695,26.0,176.87,176.86,0.14216157]
[1748346371388,26.0,176.87,176.86,35.40216157]
[1748346372475,0.565387,176.87,176.86,35.40216157]
[1748346373574,26.0,176.87,176.86,35.38216157]
[1748346375614,26.565387,176.87,176.86,35.38216157]
[1748346378451,26.565387,176.87,176.86,0.14216157]
[1748346378594,26.565387,176.87,176.86,35.32216157]
[1748346379303,0.565387,176.87,176.86,35.32216157]
[1748346379503,26.565387,176.87,176.86,35.32216157]
[1748346380417,26.565387,176.87,176.86,35.30216157]
[1748346381019,38.20960366,176.91,176.86,35.30216157]
[1748346381212,13.62265094,176.93,176.87,18.64964886]
[1748346381409,0.56522722,176.92,176.88,0.14216157]
[1748346381600,12.20960366,176.93,176.9,0.14216157]
[1748346381601,0.56519527,176.93,176.9,0.14216157]
[1748346381992,26.0,176.92,176.9,0.14216157]
[1748346382195,0.56519527,176.93,176.9,0.14216157]
[1748346382521,26.0,176.92,176.9,0.14216157]
[1748346383230,26.0,176.93,176.9,9.50216157]
[1748346383533,3.16388875,176.94,176.91,18.64964886]
[1748346383534,2.59871416,176.94,176.91,18.64964886]
[1748346383828,2.59871416,176.94,176.92,0.14216157]
[1748346384031,2.59871416,176.94,176.93,53.95181043]
[1748346388636,2.59871416,176.94,176.93,59.60376317]